[Event "Live Chess"]
[Site "Chess.com"]
[Date "2023.05.21"]
[Round "-"]
[White "LiamClery2020"]
[Black "Nazar_777"]
[Result "1-0"]
[WhiteElo "1982"]
[BlackElo "1556"]
[TimeControl "300"]
[EndTime "5:48:21 PDT"]
[Termination "LiamClery2020 won by checkmate"]

1. e4 {[%clk 0:04:44.9]} 1... e6 {[%clk 0:04:59.9]} 2. d4 {[%clk 0:04:41.2]}
2... a6 {[%clk 0:04:59.3]} 3. Nf3 {[%clk 0:04:36.8]} 3... h5 {[%clk 0:04:58.2]}
4. Bg5 {[%clk 0:04:34.1]} 4... Be7 {[%clk 0:04:54.9]} 5. Bxe7 {[%clk 0:04:33.2]}
5... Qxe7 {[%clk 0:04:53.7]} 6. Nc3 {[%clk 0:04:33.1]} 6... c5 {[%clk
0:04:51.7]} 7. d5 {[%clk 0:04:23.2]} 7... Qd8 {[%clk 0:04:48.4]} 8. d6 {[%clk
0:04:20.2]} 8... b6 {[%clk 0:04:46.1]} 9. Qe2 {[%clk 0:04:19.2]} 9... Bb7 {[%clk
0:04:44.5]} 10. O-O-O {[%clk 0:04:14.9]} 10... Qc8 {[%clk 0:04:43.8]} 11. Nd5
{[%clk 0:04:10.2]} 11... Nf6 {[%clk 0:04:38.5]} 12. Nxb6 {[%clk 0:04:05.2]}
12... Qc6 {[%clk 0:04:32.7]} 13. Nxa8 {[%clk 0:04:01.3]} 13... Bxa8 {[%clk
0:04:31.2]} 14. e5 {[%clk 0:03:58.5]} 14... Nd5 {[%clk 0:04:29.3]} 15. Qe4
{[%clk 0:03:54.4]} 15... g6 {[%clk 0:04:25.7]} 16. Bc4 {[%clk 0:03:52.2]} 16...
Qb6 {[%clk 0:04:21]} 17. Bxd5 {[%clk 0:03:47.5]} 17... Bxd5 {[%clk 0:04:19.6]}
18. Rxd5 {[%clk 0:03:46.7]} 18... exd5 {[%clk 0:04:16.8]} 19. Qxd5 {[%clk
0:03:46.6]} 19... Nc6 {[%clk 0:04:14.5]} 20. Ng5 {[%clk 0:03:44]} 20... Rf8
{[%clk 0:04:08.6]} 21. Nh7 {[%clk 0:03:42.9]} 21... Rg8 {[%clk 0:04:06.4]} 22.
Nf6+ {[%clk 0:03:41.8]} 22... Kf8 {[%clk 0:04:05.5]} 23. Nxd7+ {[%clk
0:03:40.3]} 23... Kg7 {[%clk 0:03:54.7]} 24. Nxb6 {[%clk 0:03:40.2]} 24... Nb4
{[%clk 0:03:52.6]} 25. Qxc5 {[%clk 0:03:35.5]} 25... a5 {[%clk 0:03:50.8]} 26.
Qxa5 {[%clk 0:03:33.8]} 26... Nxa2+ {[%clk 0:03:45.6]} 27. Qxa2 {[%clk
0:03:32.7]} 27... Rb8 {[%clk 0:03:44.5]} 28. d7 {[%clk 0:03:30.1]} 28... Rxb6
{[%clk 0:03:42.7]} 29. d8=Q {[%clk 0:03:29.3]} 29... Re6 {[%clk 0:03:41.4]} 30.
Qxe6 {[%clk 0:03:27.9]} 30... fxe6 {[%clk 0:03:40.2]} 31. Rd1 {[%clk 0:03:27.8]}
31... Kh6 {[%clk 0:03:39.6]} 32. Qf6 {[%clk 0:03:26.5]} 32... h4 {[%clk
0:03:38.4]} 33. Rd8 {[%clk 0:03:25.7]} 33... h3 {[%clk 0:03:37.4]} 34. Rh8#
{[%clk 0:03:25.6]} 1-0

[Event "Live Chess"]
[Site "Chess.com"]
[Date "2023.05.21"]
[Round "-"]
[White "Leonid_Starozhilov"]
[Black "MaximKhimchenko"]
[Result "1-0"]
[WhiteElo "2638"]
[BlackElo "1404"]
[TimeControl "300"]
[EndTime "5:48:31 PDT"]
[Termination "Leonid_Starozhilov won by checkmate"]

1. e4 {[%clk 0:04:57.2]} 1... c5 {[%clk 0:04:58.2]} 2. Nf3 {[%clk 0:04:56]} 2...
Nc6 {[%clk 0:04:57.1]} 3. Bb5 {[%clk 0:04:54.8]} 3... d6 {[%clk 0:04:52.4]} 4.
O-O {[%clk 0:04:53.8]} 4... Bd7 {[%clk 0:04:50.9]} 5. c3 {[%clk 0:04:41.5]} 5...
Nf6 {[%clk 0:04:44.5]} 6. Re1 {[%clk 0:04:40.6]} 6... Ne5 {[%clk 0:04:41.5]} 7.
Bxd7+ {[%clk 0:04:38]} 7... Qxd7 {[%clk 0:04:41.4]} 8. d4 {[%clk 0:04:36.5]}
8... cxd4 {[%clk 0:04:39.2]} 9. cxd4 {[%clk 0:04:35.8]} 9... Nxf3+ {[%clk
0:04:37.1]} 10. Qxf3 {[%clk 0:04:34.9]} 10... e5 {[%clk 0:04:33.9]} 11. dxe5
{[%clk 0:04:32.6]} 11... dxe5 {[%clk 0:04:33.8]} 12. Nc3 {[%clk 0:04:31.3]}
12... Bb4 {[%clk 0:04:31.1]} 13. Bg5 {[%clk 0:04:26.8]} 13... Bxc3 {[%clk
0:04:23.9]} 14. Qxc3 {[%clk 0:04:23.8]} 14... Qe6 {[%clk 0:04:19.6]} 15. Qc7
{[%clk 0:04:16.7]} 15... O-O {[%clk 0:04:15.3]} 16. b3 {[%clk 0:04:08.2]} 16...
b6 {[%clk 0:04:07.7]} 17. Rad1 {[%clk 0:04:05.1]} 17... Rfc8 {[%clk 0:04:05.2]}
18. Qd6 {[%clk 0:03:46.4]} 18... Qxd6 {[%clk 0:03:56.5]} 19. Rxd6 {[%clk
0:03:44.3]} 19... Rc5 {[%clk 0:03:53.9]} 20. Bxf6 {[%clk 0:03:40.5]} 20... gxf6
{[%clk 0:03:52.8]} 21. Rxf6 {[%clk 0:03:39.6]} 21... Kg7 {[%clk 0:03:51.5]} 22.
Rd6 {[%clk 0:03:32.3]} 22... Rac8 {[%clk 0:03:43.3]} 23. h4 {[%clk 0:03:24.5]}
23... Rc2 {[%clk 0:03:37.9]} 24. Re3 {[%clk 0:03:10.9]} 24... Rxa2 {[%clk
0:03:33.9]} 25. Rg3+ {[%clk 0:03:09.8]} 25... Kf8 {[%clk 0:03:21.3]} 26. Rf3
{[%clk 0:03:09.7]} 26... Rc1+ {[%clk 0:03:13.4]} 27. Kh2 {[%clk 0:03:08.3]}
27... Rcc2 {[%clk 0:03:13.1]} 28. Rd7 {[%clk 0:03:02.2]} 28... a5 {[%clk
0:02:53.4]} 29. Rdxf7+ {[%clk 0:02:55.6]} 29... Kg8 {[%clk 0:02:51.2]} 30. R7f5
{[%clk 0:02:52.8]} 30... Rc5 {[%clk 0:02:48.8]} 31. Rg5+ {[%clk 0:02:51.7]}
31... Kh8 {[%clk 0:02:45.4]} 32. Rf8# {[%clk 0:02:51.6]} 1-0

[Event "Live Chess"]
[Site "Chess.com"]
[Date "2023.05.21"]
[Round "-"]
[White "Berdgross"]
[Black "Vitalii18a"]
[Result "1-0"]
[WhiteElo "697"]
[BlackElo "1127"]
[TimeControl "300"]
[EndTime "5:48:35 PDT"]
[Termination "Berdgross won by checkmate"]

1. d4 {[%clk 0:04:58.3]} 1... d5 {[%clk 0:04:58.7]} 2. e3 {[%clk 0:04:58.2]}
2... e6 {[%clk 0:04:57.1]} 3. Nc3 {[%clk 0:04:57.3]} 3... c5 {[%clk 0:04:56.2]}
4. dxc5 {[%clk 0:04:56]} 4... Bxc5 {[%clk 0:04:54.7]} 5. a3 {[%clk 0:04:52.9]}
5... Qa5 {[%clk 0:04:46.7]} 6. Bd2 {[%clk 0:04:43.3]} 6... Nf6 {[%clk
0:04:42.3]} 7. Nxd5 {[%clk 0:04:36.6]} 7... Qa4 {[%clk 0:04:30.4]} 8. Nc7+
{[%clk 0:04:32.6]} 8... Ke7 {[%clk 0:04:22.7]} 9. Nxa8 {[%clk 0:04:29.7]} 9...
Bd7 {[%clk 0:04:16.2]} 10. Nc7 {[%clk 0:04:24.2]} 10... Bd6 {[%clk 0:04:13.7]}
11. Nb5 {[%clk 0:04:05.5]} 11... Bxb5 {[%clk 0:04:09.1]} 12. Bxb5 {[%clk
0:04:04]} 12... Qxb5 {[%clk 0:04:07.4]} 13. b3 {[%clk 0:03:51.1]} 13... Rd8
{[%clk 0:03:55.1]} 14. a4 {[%clk 0:03:46.3]} 14... Qb6 {[%clk 0:03:47.8]} 15.
Nf3 {[%clk 0:03:40.8]} 15... Bb4 {[%clk 0:03:45.6]} 16. O-O {[%clk 0:03:30.1]}
16... Rd5 {[%clk 0:03:21.5]} 17. Qe2 {[%clk 0:03:03.7]} 17... Bxd2 {[%clk
0:03:11.2]} 18. Nxd2 {[%clk 0:03:00.4]} 18... Qd6 {[%clk 0:03:09.6]} 19. Rfd1
{[%clk 0:02:54.3]} 19... Rc5 {[%clk 0:02:58.4]} 20. Nc4 {[%clk 0:02:47.7]} 20...
Qc6 {[%clk 0:02:42]} 21. h3 {[%clk 0:02:39.1]} 21... Ne4 {[%clk 0:02:25.9]} 22.
Qd3 {[%clk 0:02:30.9]} 22... Nf6 {[%clk 0:02:17.7]} 23. Qd8# {[%clk 0:02:25.9]}
1-0

[Event "Live Chess"]
[Site "Chess.com"]
[Date "2023.05.21"]
[Round "-"]
[White "Brooms1989"]
[Black "bedsdrout"]
[Result "0-1"]
[WhiteElo "1149"]
[BlackElo "799"]
[TimeControl "300"]
[EndTime "5:48:39 PDT"]
[Termination "bedsdrout won by checkmate"]

1. e4 {[%clk 0:04:57.2]} 1... e5 {[%clk 0:04:56.5]} 2. Nc3 {[%clk 0:04:55.7]}
2... Nf6 {[%clk 0:04:53.6]} 3. f4 {[%clk 0:04:54.7]} 3... d6 {[%clk 0:04:51.7]}
4. fxe5 {[%clk 0:04:53.4]} 4... dxe5 {[%clk 0:04:48.6]} 5. Nf3 {[%clk 0:04:53]}
5... Nc6 {[%clk 0:04:45.6]} 6. Bc4 {[%clk 0:04:51.5]} 6... Bb4 {[%clk
0:04:42.7]} 7. O-O {[%clk 0:04:49.5]} 7... a6 {[%clk 0:04:40.4]} 8. a3 {[%clk
0:04:47.7]} 8... Bc5+ {[%clk 0:04:37.8]} 9. Kh1 {[%clk 0:04:46.1]} 9... Bg4
{[%clk 0:04:34.6]} 10. h3 {[%clk 0:04:41.5]} 10... Bxf3 {[%clk 0:04:32]} 11.
Rxf3 {[%clk 0:04:31.8]} 11... O-O {[%clk 0:04:28.9]} 12. d3 {[%clk 0:04:25.6]}
12... Nd4 {[%clk 0:04:26.3]} 13. Rg3 {[%clk 0:04:17.4]} 13... Kh8 {[%clk
0:04:23.9]} 14. Qg4 {[%clk 0:04:13.9]} 14... Nxg4 {[%clk 0:04:18]} 15. Rxg4
{[%clk 0:04:12]} 15... b5 {[%clk 0:04:15.4]} 16. Ba2 {[%clk 0:04:07.6]} 16...
Nxc2 {[%clk 0:04:12.8]} 17. Rb1 {[%clk 0:04:05.7]} 17... Qxd3 {[%clk 0:04:05.7]}
18. Nd5 {[%clk 0:03:39.9]} 18... Qd1+ {[%clk 0:04:00.3]} 19. Kh2 {[%clk
0:03:37.1]} 19... Qg1+ {[%clk 0:03:54.9]} 20. Kg3 {[%clk 0:03:34.3]} 20... Qf2+
{[%clk 0:03:52.5]} 21. Kh2 {[%clk 0:03:32.3]} 21... Qg1+ {[%clk 0:03:51]} 22.
Kg3 {[%clk 0:03:31.6]} 22... Bf2+ {[%clk 0:03:41.9]} 23. Kf3 {[%clk 0:03:30.3]}
23... Nd4# {[%clk 0:03:39.3]} 0-1

[Event "Live Chess"]
[Site "Chess.com"]
[Date "2023.05.21"]
[Round "-"]
[White "Duke_of_Bebington"]
[Black "MartynColebrook"]
[Result "1-0"]
[WhiteElo "1569"]
[BlackElo "959"]
[TimeControl "300"]
[EndTime "5:48:43 PDT"]
[Termination "Duke_of_Bebington won by resignation"]

1. e4 {[%clk 0:04:55.3]} 1... d5 {[%clk 0:04:58.2]} 2. exd5 {[%clk 0:04:54]}
2... Qxd5 {[%clk 0:04:54.8]} 3. d4 {[%clk 0:04:53.4]} 3... Nc6 {[%clk
0:04:52.4]} 4. Nf3 {[%clk 0:04:51.6]} 4... Nf6 {[%clk 0:04:49.7]} 5. Be2 {[%clk
0:04:49.3]} 5... Bf5 {[%clk 0:04:42.4]} 6. O-O {[%clk 0:04:41.5]} 6... O-O-O
{[%clk 0:04:32.9]} 7. c3 {[%clk 0:04:37.3]} 7... Ne4 {[%clk 0:04:23.4]} 8. Qb3
{[%clk 0:04:31.7]} 8... Qxb3 {[%clk 0:04:20.8]} 9. axb3 {[%clk 0:04:31.6]} 9...
e6 {[%clk 0:04:11.5]} 10. Bf4 {[%clk 0:04:29]} 10... Bd6 {[%clk 0:04:08.2]} 11.
Bxd6 {[%clk 0:04:27.3]} 11... Nxd6 {[%clk 0:04:06.4]} 12. Nbd2 {[%clk
0:04:24.2]} 12... Rhe8 {[%clk 0:03:57.3]} 13. Nc4 {[%clk 0:04:21.7]} 13... Bc2
{[%clk 0:03:39.2]} 14. b4 {[%clk 0:04:04.5]} 14... Nxc4 {[%clk 0:03:31.5]} 15.
Bxc4 {[%clk 0:04:02.3]} 15... a6 {[%clk 0:03:16.5]} 16. b5 {[%clk 0:04:00.8]}
16... axb5 {[%clk 0:03:11.9]} 17. Bxb5 {[%clk 0:03:56.3]} 17... Be4 {[%clk
0:02:54.7]} 18. Ra8+ {[%clk 0:03:49.4]} 18... Kd7 {[%clk 0:02:50.6]} 19. Ra7
{[%clk 0:03:30.7]} 19... Ra8 {[%clk 0:02:41.5]} 20. Rxb7 {[%clk 0:03:26.7]}
20... Kc8 {[%clk 0:02:24.9]} 21. Bxc6 {[%clk 0:03:24.2]} 21... Bxc6 {[%clk
0:02:21.6]} 22. Rb3 {[%clk 0:03:20.7]} 22... Kd7 {[%clk 0:02:11.9]} 23. Ne5+
{[%clk 0:03:18.3]} 23... Kd6 {[%clk 0:02:06.3]} 24. Nxf7+ {[%clk 0:03:17.2]}
24... Kd5 {[%clk 0:01:55.9]} 25. Re1 {[%clk 0:03:01.7]} 25... Kc4 {[%clk
0:01:49.3]} 26. Rb4+ {[%clk 0:02:56.8]} 26... Kd3 {[%clk 0:01:46.3]} 27. Ne5+
{[%clk 0:02:55.5]} 27... Kc2 {[%clk 0:01:33.3]} 28. Nxc6 {[%clk 0:02:50.8]}
28... Ra2 {[%clk 0:01:24.6]} 29. h3 {[%clk 0:02:45.4]} 29... Rxb2 {[%clk
0:01:15.6]} 30. Rxb2+ {[%clk 0:02:42.5]} 30... Kxb2 {[%clk 0:01:14.1]} 31. c4
{[%clk 0:02:41.4]} 1-0

[Event "Live Chess"]
[Site "Chess.com"]
[Date "2023.05.21"]
[Round "-"]
[White "LodeshChess"]
[Black "wadsy27"]
[Result "0-1"]
[WhiteElo "1191"]
[BlackElo "2551"]
[TimeControl "300"]
[EndTime "5:48:43 PDT"]
[Termination "wadsy27 won by resignation"]

1. e4 {[%clk 0:04:58.3]} 1... e6 {[%clk 0:04:58.4]} 2. d4 {[%clk 0:04:56.2]}
2... d5 {[%clk 0:04:57.8]} 3. e5 {[%clk 0:04:55.9]} 3... c5 {[%clk 0:04:56.9]}
4. c3 {[%clk 0:04:54.5]} 4... Nc6 {[%clk 0:04:56.5]} 5. Nf3 {[%clk 0:04:53.9]}
5... Qb6 {[%clk 0:04:56.1]} 6. Bd3 {[%clk 0:04:53.2]} 6... cxd4 {[%clk
0:04:54.9]} 7. O-O {[%clk 0:04:50.5]} 7... Bd7 {[%clk 0:04:53.7]} 8. a3 {[%clk
0:04:42.2]} 8... Nge7 {[%clk 0:04:49.4]} 9. Nbd2 {[%clk 0:04:18.7]} 9... dxc3
{[%clk 0:04:46.2]} 10. bxc3 {[%clk 0:04:17]} 10... Na5 {[%clk 0:04:44.5]} 11.
Re1 {[%clk 0:03:52]} 11... Rc8 {[%clk 0:04:26.7]} 12. Qc2 {[%clk 0:03:38.5]}
12... Qc7 {[%clk 0:04:21.1]} 13. Bb2 {[%clk 0:03:34.7]} 13... a6 {[%clk
0:04:15.2]} 14. c4 {[%clk 0:03:24.4]} 14... dxc4 {[%clk 0:04:07.2]} 15. Nxc4
{[%clk 0:03:23.7]} 15... Nxc4 {[%clk 0:04:06]} 16. Rac1 {[%clk 0:03:16.2]} 16...
b5 {[%clk 0:03:42.9]} 17. a4 {[%clk 0:02:51.6]} 17... Nd5 {[%clk 0:03:39.9]} 18.
axb5 {[%clk 0:02:49.1]} 18... axb5 {[%clk 0:03:29.4]} 19. Re4 {[%clk 0:02:48.4]}
19... Be7 {[%clk 0:03:18.2]} 20. Bxc4 {[%clk 0:02:44.4]} 20... bxc4 {[%clk
0:03:16.9]} 21. Rxc4 {[%clk 0:02:42.9]} 21... Qxc4 {[%clk 0:03:16.2]} 22. Qxc4
{[%clk 0:02:41.9]} 22... Rxc4 {[%clk 0:03:16.1]} 23. Rxc4 {[%clk 0:02:41.2]}
23... O-O {[%clk 0:03:16]} 24. h3 {[%clk 0:02:35.3]} 24... Rb8 {[%clk
0:03:14.3]} 25. Bd4 {[%clk 0:02:28.7]} 25... h6 {[%clk 0:03:07.5]} 26. Ra4
{[%clk 0:02:24.7]} 26... Bxa4 {[%clk 0:03:05.6]} 0-1

[Event "Live Chess"]
[Site "Chess.com"]
[Date "2023.05.21"]
[Round "-"]
[White "EdenHazard8"]
[Black "AMCWAML"]
[Result "1/2-1/2"]
[WhiteElo "1938"]
[BlackElo "2307"]
[TimeControl "300"]
[EndTime "5:48:56 PDT"]
[Termination "Game drawn - timeout vs insufficient material"]

1. e4 {[%clk 0:04:57.9]} 1... c5 {[%clk 0:04:58.4]} 2. Nc3 {[%clk 0:04:56.3]}
2... Nc6 {[%clk 0:04:56.2]} 3. f4 {[%clk 0:04:56.2]} 3... g6 {[%clk 0:04:54.9]}
4. Nf3 {[%clk 0:04:56.1]} 4... Bg7 {[%clk 0:04:54.6]} 5. Bc4 {[%clk 0:04:49.6]}
5... e6 {[%clk 0:04:53.9]} 6. O-O {[%clk 0:04:45.3]} 6... Nge7 {[%clk
0:04:52.5]} 7. d3 {[%clk 0:04:42.4]} 7... d5 {[%clk 0:04:49.4]} 8. Bb3 {[%clk
0:04:40.2]} 8... O-O {[%clk 0:04:44.3]} 9. Qe1 {[%clk 0:04:37.9]} 9... dxe4
{[%clk 0:04:27.5]} 10. dxe4 {[%clk 0:04:33.6]} 10... Nd4 {[%clk 0:04:20.9]} 11.
Nxd4 {[%clk 0:04:26.6]} 11... cxd4 {[%clk 0:04:16.4]} 12. Ne2 {[%clk 0:04:26.5]}
12... d3 {[%clk 0:04:04.4]} 13. cxd3 {[%clk 0:04:22.2]} 13... Qxd3 {[%clk
0:04:04.3]} 14. Ng3 {[%clk 0:04:18]} 14... Bd7 {[%clk 0:03:55]} 15. Rf3 {[%clk
0:04:11.8]} 15... Qd4+ {[%clk 0:03:46.2]} 16. Kh1 {[%clk 0:04:05.3]} 16... Bc6
{[%clk 0:03:42]} 17. Rb1 {[%clk 0:03:55.6]} 17... a5 {[%clk 0:02:48.8]} 18. Be3
{[%clk 0:03:54.2]} 18... Qd7 {[%clk 0:02:47.2]} 19. Bc5 {[%clk 0:03:52.5]} 19...
Rfe8 {[%clk 0:02:41.8]} 20. Rd1 {[%clk 0:03:46.9]} 20... Qc7 {[%clk 0:02:41.1]}
21. Rf1 {[%clk 0:03:36.7]} 21... a4 {[%clk 0:02:37.9]} 22. Bc2 {[%clk
0:03:34.9]} 22... Bb5 {[%clk 0:02:34.8]} 23. Bd6 {[%clk 0:03:31.7]} 23... Qxc2
{[%clk 0:02:33.2]} 24. Rd2 {[%clk 0:03:27.1]} 24... Qc4 {[%clk 0:02:24.6]} 25.
Rf3 {[%clk 0:03:25.4]} 25... Nc6 {[%clk 0:02:01]} 26. e5 {[%clk 0:03:21.7]}
26... Ba6 {[%clk 0:01:22.7]} 27. Rc3 {[%clk 0:03:20]} 27... Qb5 {[%clk
0:01:21.8]} 28. Ne4 {[%clk 0:03:15.5]} 28... Qf1+ {[%clk 0:01:15.5]} 29. Qxf1
{[%clk 0:03:14.7]} 29... Bxf1 {[%clk 0:01:15.2]} 30. Nc5 {[%clk 0:03:14.6]}
30... Ba6 {[%clk 0:01:12.4]} 31. Nd7 {[%clk 0:03:09.9]} 31... Rad8 {[%clk
0:01:04.8]} 32. Nb6 {[%clk 0:03:08.3]} 32... Bf8 {[%clk 0:01:03.1]} 33. Nxa4
{[%clk 0:03:03.1]} 33... Bxd6 {[%clk 0:00:51.6]} 34. exd6 {[%clk 0:03:03]} 34...
e5 {[%clk 0:00:51.1]} 35. d7 {[%clk 0:03:00.7]} 35... Re7 {[%clk 0:00:48.8]} 36.
Nb6 {[%clk 0:02:59.5]} 36... exf4 {[%clk 0:00:46.5]} 37. h3 {[%clk 0:02:57.6]}
37... Kg7 {[%clk 0:00:37.9]} 38. Rf3 {[%clk 0:02:55]} 38... g5 {[%clk
0:00:36.6]} 39. h4 {[%clk 0:02:53.8]} 39... h6 {[%clk 0:00:36.2]} 40. Rb3 {[%clk
0:02:50.3]} 40... Ne5 {[%clk 0:00:34.8]} 41. hxg5 {[%clk 0:02:40.7]} 41... hxg5
{[%clk 0:00:34.7]} 42. Rd5 {[%clk 0:02:38.1]} 42... Nxd7 {[%clk 0:00:33.2]} 43.
Rxg5+ {[%clk 0:02:35.2]} 43... Kf6 {[%clk 0:00:32.7]} 44. Rh5 {[%clk 0:02:30]}
44... Nxb6 {[%clk 0:00:30.6]} 45. Rxb6+ {[%clk 0:02:27.5]} 45... Re6 {[%clk
0:00:30.5]} 46. Rb4 {[%clk 0:02:23.8]} 46... Rd1+ {[%clk 0:00:27.9]} 47. Kh2
{[%clk 0:02:22]} 47... Be2 {[%clk 0:00:27.3]} 48. Rxf4+ {[%clk 0:02:19.1]} 48...
Kg7 {[%clk 0:00:26.1]} 49. Rh3 {[%clk 0:02:18]} 49... Rg6 {[%clk 0:00:23.4]} 50.
Rf2 {[%clk 0:02:14.7]} 50... Bf1 {[%clk 0:00:20.9]} 51. Rhf3 {[%clk 0:02:12.9]}
51... Bc4 {[%clk 0:00:18.2]} 52. Rh3 {[%clk 0:02:11.7]} 52... Be6 {[%clk
0:00:17.5]} 53. Rh4 {[%clk 0:02:08.4]} 53... Rd8 {[%clk 0:00:16.9]} 54. Kg1
{[%clk 0:02:05.7]} 54... Bxa2 {[%clk 0:00:14.7]} 55. b4 {[%clk 0:02:03]} 55...
Be6 {[%clk 0:00:14.6]} 56. b5 {[%clk 0:01:57]} 56... b6 {[%clk 0:00:13.2]} 57.
Rhf4 {[%clk 0:01:52.5]} 57... Rd5 {[%clk 0:00:13.1]} 58. Rh4 {[%clk 0:01:51.3]}
58... Rdg5 {[%clk 0:00:12.1]} 59. Kh2 {[%clk 0:01:49.5]} 59... Bd5 {[%clk
0:00:11.5]} 60. Rd4 {[%clk 0:01:37.2]} 60... Rxg2+ {[%clk 0:00:11.4]} 61. Rxg2
{[%clk 0:01:36.4]} 61... Rxg2+ {[%clk 0:00:10.4]} 62. Kh3 {[%clk 0:01:34.6]}
62... Rg5 {[%clk 0:00:10.3]} 63. Kh4 {[%clk 0:01:32.7]} 63... Kg6 {[%clk
0:00:08.9]} 64. Rd2 {[%clk 0:01:29.8]} 64... Be6 {[%clk 0:00:08]} 65. Rd6 {[%clk
0:01:28.6]} 65... Rg4+ {[%clk 0:00:06.7]} 66. Kh3 {[%clk 0:01:25.5]} 66... Rd4+
{[%clk 0:00:06.6]} 67. Kh2 {[%clk 0:01:25.1]} 67... Rxd6 {[%clk 0:00:05.7]} 68.
Kg3 {[%clk 0:01:24.8]} 68... Rd5 {[%clk 0:00:05.6]} 69. Kf4 {[%clk 0:01:24.7]}
69... Rxb5 {[%clk 0:00:05.4]} 70. Ke3 {[%clk 0:01:24.1]} 70... Rc5 {[%clk
0:00:05.3]} 71. Kf4 {[%clk 0:01:24]} 71... b5 {[%clk 0:00:05.2]} 72. Ke3 {[%clk
0:01:23.9]} 72... b4 {[%clk 0:00:05.1]} 73. Kf4 {[%clk 0:01:23.7]} 73... b3
{[%clk 0:00:05]} 74. Ke3 {[%clk 0:01:23.5]} 74... b2 {[%clk 0:00:04.9]} 75. Kd4
{[%clk 0:01:23.4]} 75... b1=Q {[%clk 0:00:04.8]} 76. Kxc5 {[%clk 0:01:23.3]}
76... Qe1 {[%clk 0:00:02]} 77. Kd6 {[%clk 0:01:23.2]} 77... f5 {[%clk
0:00:01.4]} 78. Ke7 {[%clk 0:01:23.1]} 78... f4 {[%clk 0:00:01.3]} 79. Kf8
{[%clk 0:01:23]} 79... f3 {[%clk 0:00:01]} 80. Ke8 {[%clk 0:01:22.1]} 80... f2
{[%clk 0:00:00.9]} 81. Kd8 {[%clk 0:01:22]} 81... f1=Q {[%clk 0:00:00.5]} 82.
Ke8 {[%clk 0:01:21.1]} 82... Qef2 {[%clk 0:00:00.4]} 83. Kd8 {[%clk 0:01:20.3]}
83... Bg4 {[%clk 0:00:00.3]} 84. Kc7 {[%clk 0:01:19.3]} 84... Q1e1 {[%clk
0:00:00.2]} 85. Kd6 {[%clk 0:01:18.5]} 85... Qfd2+ {[%clk 0:00:00.1]} 86. Kc7
{[%clk 0:01:18.1]} 1/2-1/2

[Event "Live Chess"]
[Site "Chess.com"]
[Date "2023.05.21"]
[Round "-"]
[White "Ed_Knox"]
[Black "Olisingapore"]
[Result "0-1"]
[WhiteElo "1449"]
[BlackElo "1775"]
[TimeControl "300"]
[EndTime "5:49:08 PDT"]
[Termination "Olisingapore won by checkmate"]

1. d4 {[%clk 0:04:56.4]} 1... Nf6 {[%clk 0:04:56.5]} 2. Bf4 {[%clk 0:04:55.6]}
2... d5 {[%clk 0:04:55.1]} 3. e3 {[%clk 0:04:54.9]} 3... c5 {[%clk 0:04:54.6]}
4. Nf3 {[%clk 0:04:53.9]} 4... Nc6 {[%clk 0:04:53.8]} 5. Nbd2 {[%clk 0:04:53.2]}
5... Bf5 {[%clk 0:04:53.6]} 6. c3 {[%clk 0:04:52.4]} 6... e6 {[%clk 0:04:52.5]}
7. Qb3 {[%clk 0:04:50.7]} 7... Qd7 {[%clk 0:04:50.4]} 8. Bb5 {[%clk 0:04:38.5]}
8... c4 {[%clk 0:04:47.3]} 9. Qd1 {[%clk 0:04:19.5]} 9... Bd6 {[%clk 0:04:45]}
10. Bxc6 {[%clk 0:04:15.3]} 10... Qxc6 {[%clk 0:04:43.9]} 11. Bxd6 {[%clk
0:04:12.3]} 11... Qxd6 {[%clk 0:04:42.6]} 12. O-O {[%clk 0:04:01.8]} 12... O-O
{[%clk 0:04:42]} 13. Ne5 {[%clk 0:03:52.5]} 13... b5 {[%clk 0:04:38.5]} 14. Ndf3
{[%clk 0:03:51.1]} 14... h6 {[%clk 0:04:26.8]} 15. Nh4 {[%clk 0:03:48.7]} 15...
Bh7 {[%clk 0:04:22.4]} 16. f4 {[%clk 0:03:47.5]} 16... b4 {[%clk 0:04:18.5]} 17.
f5 {[%clk 0:03:26.1]} 17... bxc3 {[%clk 0:04:13.7]} 18. bxc3 {[%clk 0:03:24.4]}
18... exf5 {[%clk 0:04:10.3]} 19. Nxf5 {[%clk 0:03:17.4]} 19... Qe6 {[%clk
0:04:09]} 20. Qf3 {[%clk 0:02:59.2]} 20... Ne4 {[%clk 0:04:06.8]} 21. Nxg7
{[%clk 0:01:54.3]} 21... Kxg7 {[%clk 0:03:53.1]} 22. Qh5 {[%clk 0:01:47.8]}
22... Bg6 {[%clk 0:03:44.7]} 23. Nxg6 {[%clk 0:01:35.1]} 23... fxg6 {[%clk
0:03:44.6]} 24. Qh4 {[%clk 0:01:14.1]} 24... Nxc3 {[%clk 0:03:29.2]} 25. Rf4
{[%clk 0:01:05.3]} 25... Ne2+ {[%clk 0:03:27.1]} 26. Kh1 {[%clk 0:01:01.8]}
26... Nxf4 {[%clk 0:03:24.1]} 27. exf4 {[%clk 0:01:00.3]} 27... Rf5 {[%clk
0:03:03.7]} 28. Re1 {[%clk 0:00:58.7]} 28... Qf6 {[%clk 0:02:33]} 29. Re7+
{[%clk 0:00:51.1]} 29... Kg8 {[%clk 0:02:15.7]} 30. Qxh6 {[%clk 0:00:44.7]}
30... Qxe7 {[%clk 0:02:09.5]} 31. Qxg6+ {[%clk 0:00:43.3]} 31... Kh8 {[%clk
0:01:58.5]} 32. Qh6+ {[%clk 0:00:35.4]} 32... Qh7 {[%clk 0:01:56.6]} 33. Qc6
{[%clk 0:00:23]} 33... Rb8 {[%clk 0:01:47.6]} 34. h3 {[%clk 0:00:18.8]} 34...
Rb1+ {[%clk 0:01:39.6]} 35. Kh2 {[%clk 0:00:18]} 35... Qh6 {[%clk 0:01:35.4]}
36. Qc8+ {[%clk 0:00:15.3]} 36... Rf8 {[%clk 0:01:32.7]} 37. Qe6 {[%clk
0:00:05.3]} 37... Qxf4+ {[%clk 0:01:30.2]} 38. g3 {[%clk 0:00:02.2]} 38... Qf2#
{[%clk 0:01:29.8]} 0-1